bitfinex-derivatives/quotes_SOLF0:USTF0_20250221
["timestamp","ask_amount","ask_price","bid_price","bid_amount"]
[1740166508525,5.8821,170.02,170.01,0.03702246]
[1740166508829,16.77328024,170.03,169.95,59.05698781]
[1740166509032,16.77328024,170.03,169.91,5.3428]
[1740166509033,16.77328024,170.0,169.93,5.8851]
[1740166509225,16.77328024,169.97,169.86,8.05468379]
[1740166509620,5.8856,169.92,169.87,5.8872]
[1740166509826,194.0,169.93,169.86,8.05468379]
[1740166510125,0.03761995,169.91,169.88,0.04068111]
[1740166510522,16.81090019,169.91,169.88,0.04068111]
[1740166511130,194.0,169.9,169.78,1.8102]
[1740166511334,194.0,169.89,169.78,1.8102]
[1740166512228,194.0,169.89,169.76,8.05468379]
[1740166512229,16.77328024,169.83,169.76,8.05468379]
[1740166512433,16.77328024,169.8,169.76,8.05468379]
[1740166512735,194.0,169.79,169.76,8.05468379]
[1740166513032,194.0,169.78,169.76,8.05468379]
[1740166513228,194.0,169.77,169.76,8.05468379]
[1740166513430,210.77328024,169.77,169.76,8.05468379]
[1740166513832,194.0,169.77,169.76,8.05468379]
[1740166514027,194.0,169.77,169.75,24.16405137]
[1740166514028,194.0,169.77,169.75,0.0424187]
[1740166514531,194.0,169.77,169.69,1.7512]
[1740166514934,5.8919,169.74,169.67,5.8939]
[1740166515428,194.0,169.76,169.65,24.01717177]
[1740166515637,0.03756739,169.72,169.69,0.04080065]
[1740166517439,5.893,169.71,169.69,0.04080065]
[1740166517735,0.03756739,169.72,169.69,0.04080065]
[1740166517939,5.8932,169.7,169.69,0.04080065]
[1740166518436,0.03756739,169.72,169.69,0.04080065]
[1740166520334,0.03756739,169.72,169.71,5.8928]
[1740166520537,194.0,169.81,169.71,24.01717177]
[1740166520837,199.8897,169.81,169.72,1.8692]
[1740166521041,194.0,169.81,169.72,1.8692]
[1740166521540,194.0,169.81,169.76,5.8909]
[1740166521742,194.0,169.81,169.72,1.8692]
[1740166522037,0.03732946,169.78,169.77,5.8907]
[1740166522446,0.03732946,169.78,169.75,0.03982046]
[1740166522841,0.43899,169.86,169.77,24.01717177]
[1740166523347,0.43899,169.86,169.74,24.01717177]
[1740166523849,5.889,169.82,169.77,5.8907]
[1740166524045,0.04435884,169.82,169.78,0.03725109]
[1740166525248,0.04435884,169.82,169.78,24.05442286]
[1740166526151,0.04435884,169.82,169.78,5.92765109]
[1740166526952,0.04435884,169.82,169.78,0.03725109]
[1740166527143,0.04435884,169.82,169.78,24.05442286]
[1740166527342,0.04435884,169.82,169.78,0.03725109]
[1740166528347,0.04435884,169.82,169.78,5.92755109]
[1740166528548,0.04435884,169.82,169.78,0.03725109]
[1740166528951,5.884e-05,169.82,169.81,5.8894]
[1740166531654,5.884e-05,169.82,169.79,7.713]
[1740166531855,5.884e-05,169.82,169.79,5.8898]
[1740166532652,5.884e-05,169.82,169.78,0.03725109]
[1740166533254,5.88915884,169.82,169.78,5.92765109]
[1740166533656,5.884e-05,169.82,169.78,0.03725109]
[1740166533961,5.884e-05,169.82,169.81,5.8894]
[1740166535158,5.884e-05,169.82,169.78,5.92755109]
[1740166535362,5.8896,169.81,169.78,0.03725109]
[1740166535653,5.884e-05,169.82,169.78,0.03725109]
[1740166535859,5.8894,169.81,169.78,0.03725109]
[1740166536159,5.884e-05,169.82,169.78,0.03725109]
[1740166537957,5.89,169.8,169.78,0.03725109]
[1740166538260,5.8894,169.81,169.78,0.03725109]
[1740166538856,5.884e-05,169.82,169.78,0.03725109]
[1740166540161,5.884e-05,169.82,169.78,5.92735109]
[1740166540662,5.8894,169.81,169.78,0.03725109]
[1740166541063,5.884e-05,169.82,169.78,0.03725109]
[1740166541464,5.89,169.79,169.78,0.03725109]
[1740166543363,194.0,169.81,169.78,0.03725109]
[1740166543750,5.884e-05,169.82,169.78,0.03725109]
[1740166544153,5.884e-05,169.82,169.81,5.8894]
[1740166545861,0.43899,169.86,169.85,5.888]
[1740166546160,1.7045,169.95,169.78,5.3434]
[1740166546369,5.8865,169.9,169.78,5.3434]
[1740166546865,1.7045,169.95,169.78,5.3434]
[1740166547063,5.8859,169.91,169.78,5.3434]
[1740166547357,1.484e-05,169.86,169.82,0.04078554]
[1740166547561,5.8849,169.94,169.8,24.00915195]
[1740166547859,194.0,169.96,169.8,24.00915195]
[1740166548065,5.8852,169.94,169.89,5.8865]
[1740166548363,194.0,169.96,169.8,24.00915195]
[1740166548559,0.03941834,169.93,169.9,0.040966]
[1740166548763,0.03941834,169.93,169.8,24.00915195]
[1740166548965,0.03941834,169.93,169.9,0.04040329]
[1740166549166,24.00915195,169.92,169.78,5.3434]
[1740166549563,1.8055,169.91,169.78,5.3434]
[1740166549763,5.8875,169.87,169.78,5.3434]
[1740166550066,1.8055,169.91,169.78,5.3434]
[1740166550266,0.04340449,169.84,169.81,5.92928638]
[1740166550462,5.8877,169.86,169.81,0.04028638]
[1740166550667,0.03825627,169.84,169.81,0.04028638]
[1740166551371,0.03825627,169.84,169.82,5.889]
[1740166551570,0.03825627,169.84,169.81,0.04028638]
[1740166551965,0.03825627,169.84,169.83,5.8887]
[1740166552367,11.36031517,169.93,169.83,5.8887]
[1740166552575,11.36031517,169.93,169.8,24.00915195]
[1740166552872,5.8857,169.92,169.8,24.00915195]
[1740166553171,1.7045,169.99,169.8,24.00915195]
[1740166553574,5.8851,169.94,169.89,5.8863]
[1740166553775,0.03858185,169.9,169.89,5.8863]
[1740166554875,0.03858185,169.9,169.87,0.03845694]
[1740166555574,0.03858185,169.9,169.89,5.8866]
[1740166555875,0.03858185,169.9,169.87,0.03845694]
[1740166556276,0.03858185,169.9,169.89,5.8866]
[1740166557780,0.03858185,169.9,169.88,5.8868]
[1740166558171,0.03858185,169.9,169.87,0.03845694]
[1740166558577,0.03858185,169.9,169.89,5.8866]
[1740166560571,11.37863745,169.97,169.87,0.03845694]
[1740166560972,5.884,169.97,169.87,0.03845694]
[1740166561181,24.00915195,170.0,169.87,0.03845694]
[1740166561474,1.00170804,169.99,169.86,3.5332]
[1740166561672,0.03917058,169.95,169.92,0.04494324]
[1740166562776,0.03917058,169.95,169.77,11.7812]
[1740166562981,200.45313373,169.95,169.78,1.7305]
[1740166563170,5.8879,169.86,169.78,1.7305]
[1740166563377,24.00915195,169.88,169.77,1.8027]
[1740166563670,1.8023,169.87,169.77,1.8027]
[1740166563870,3.5966,169.87,169.76,31.91672581]
[1740166564075,0.03851336,169.84,169.8,0.04385508]
[1740166564281,5.8894,169.81,169.8,0.04385508]
[1740166564577,24.04766531,169.84,169.76,31.91672581]
[1740166564775,24.00915195,169.84,169.76,31.91672581]
[1740166564978,195.00009528,169.83,169.76,31.91672581]
[1740166565276,24.00915195,169.81,169.76,31.91672581]
[1740166565476,5.8907,169.77,169.76,29.08412581]
[1740166565675,194.04294918,169.8,169.77,0.04036594]
[1740166565872,208.19590262,169.79,169.66,1.8822]
[1740166566077,32.42915195,169.78,169.66,1.8822]
[1740166566479,8.42,169.78,169.66,1.8822]
[1740166566675,8.42,169.78,169.7,5.8928]
[1740166566876,14.3107,169.78,169.66,1.8822]
[1740166567179,0.04405155,169.76,169.72,5.93080062]
[1740166567979,0.04405155,169.76,169.74,5.8918]
[1740166568282,0.04405155,169.76,169.72,0.03840062]
[1740166568476,8.42,169.84,169.72,0.03840062]
[1740166568672,0.99978368,169.83,169.72,0.03840062]
[1740166568879,0.99978368,169.83,169.71,1.8544]
[1740166569079,5.89,169.8,169.75,5.8913]
[1740166569279,8.42,169.84,169.72,1.7263]
[1740166569677,0.04401378,169.8,169.76,0.04274161]
[1740166570079,5.93371378,169.8,169.76,0.04274161]
[1740166570777,0.04401378,169.8,169.76,0.04274161]
[1740166572379,5.93401378,169.8,169.76,0.04274161]
[1740166572779,0.04401378,169.8,169.76,0.04274161]
[1740166575084,0.04401378,169.8,169.79,5.89]
[1740166575285,0.04401378,169.8,169.76,0.04274161]
[1740166577489,0.04401378,169.8,169.79,5.89]
[1740166578685,1.8023,169.87,169.84,5.8883]
[1740166578888,10.1913,169.92,169.84,5.8883]
[1740166579186,0.99881946,169.91,169.77,25.85665195]
[1740166579588,197.5614,169.92,169.77,25.85665195]
[1740166579786,197.5614,169.92,169.82,0.04113304]
[1740166579980,0.04487156,169.86,169.82,0.04113304]
[1740166580282,5.93277156,169.86,169.82,0.04113304]
[1740166580491,0.04487156,169.86,169.82,0.04113304]
[1740166580989,0.04487156,169.86,169.82,5.93003304]
[1740166581290,0.04487156,169.86,169.82,0.04113304]
[1740166581684,0.04487156,169.86,169.83,5.8884]
[1740166581882,0.04487156,169.86,169.82,0.04113304]
[1740166583391,0.04487156,169.86,169.83,5.8886]
[1740166583585,0.04487156,169.86,169.82,0.04113304]
[1740166584998,5.8887,169.83,169.82,0.04113304]
[1740166586396,1.85377156,169.86,169.82,0.04113304]
[1740166586601,5.8885,169.84,169.82,0.04113304]
[1740166587186,1.85377156,169.86,169.82,0.04113304]
[1740166587187,5.8887,169.83,169.82,0.04113304]
[1740166587800,5.8899,169.8,169.72,3.7021]
[1740166588291,1.8089,169.86,169.72,3.7021]
[1740166588292,5.8881,169.85,169.72,3.7021]
[1740166588793,1.8089,169.86,169.72,3.7021]
[1740166588992,0.041944,169.8,169.77,0.0393719]
[1740166589493,0.041944,169.8,169.79,5.89]
[1740166591588,0.041944,169.8,169.77,0.0393719]
[1740166592100,0.041944,169.8,169.77,5.9299719]
[1740166592399,0.041944,169.8,169.77,0.0393719]
[1740166593296,5.8904,169.78,169.77,0.0393719]
[1740166593696,0.041944,169.8,169.77,0.0393719]
[1740166594095,5.89,169.79,169.77,0.0393719]
[1740166595094,0.041944,169.8,169.77,0.0393719]
[1740166595704,5.8901,169.79,169.77,0.0393719]
[1740166595903,0.041944,169.8,169.77,0.0393719]
[1740166596199,5.8903,169.79,169.77,0.0393719]
[1740166596497,0.041944,169.8,169.77,0.0393719]
[1740166596701,5.8904,169.78,169.77,0.0393719]
[1740166597901,5.8901,169.79,169.77,0.0393719]
[1740166598702,0.041944,169.8,169.77,0.0393719]
[1740166598902,0.041944,169.8,169.79,5.89]
[1740166603098,1.7428,169.88,169.85,5.888]
[1740166603303,1.7428,169.88,169.78,14.99610787]
[1740166603706,11.40888865,169.9,169.78,14.99610787]
[1740166603907,11.40888865,169.9,169.79,1.8463]
[1740166604106,5.8865,169.9,169.87,5.8872]
[1740166604407,0.04118765,169.86,169.83,0.04205775]
[1740166604706,5.8861,169.91,169.88,5.8869]
[1740166605109,5.92841161,169.91,169.88,5.8869]
[1740166605310,0.04231161,169.91,169.88,0.0374059]
[1740166607011,5.8865,169.9,169.88,0.0374059]
[1740166607309,0.04231161,169.91,169.88,0.0374059]
[1740166609115,0.04231161,169.91,169.89,5.8866]
[1740166609314,0.04231161,169.91,169.88,0.0374059]
[1740166609812,5.8862,169.9,169.88,0.0374059]
[1740166610222,0.04231161,169.91,169.88,0.0374059]
[1740166610422,5.92851161,169.91,169.88,0.0374059]
[1740166610622,5.92851161,169.91,169.88,5.9243059]
[1740166610824,0.04231161,169.91,169.88,0.0374059]
[1740166611025,0.04231161,169.91,169.88,5.9242059]
[1740166611222,0.04231161,169.91,169.88,0.0374059]
[1740166611725,0.04231161,169.91,169.89,5.8863]
[1740166611919,0.04231161,169.91,169.88,0.0374059]
[1740166612325,0.04231161,169.91,169.89,5.8866]
[1740166613321,0.04231161,169.91,169.88,0.0374059]
[1740166614322,5.8865,169.9,169.88,0.0374059]
[1740166614728,0.04231161,169.91,169.88,0.0374059]
[1740166614921,14.99610787,169.9,169.81,5.8893]
[1740166615119,14.99610787,169.87,169.76,1.8681]
[1740166615323,5.889,169.83,169.76,1.8681]
[1740166615523,14.99610787,169.87,169.78,5.8904]
[1740166615929,14.99610787,169.87,169.76,1.8681]
[1740166615930,5.8889,169.83,169.76,1.8681]
[1740166616125,5.8889,169.83,169.81,0.04310481]
[1740166616527,0.04328861,169.84,169.81,0.04310481]
[1740166616831,15.03939648,169.84,169.74,1.7337]
[1740166617022,15.03939648,169.84,169.73,59.13377508]
[1740166617427,14.99610787,169.84,169.73,59.13377508]
[1740166617629,0.99984267,169.83,169.73,59.13377508]
[1740166618030,0.03852808,169.8,169.76,0.03944381]
[1740166618539,5.8907,169.77,169.76,0.03944381]
[1740166618837,1.84472808,169.8,169.68,0.7680182]
[1740166618838,14.99610787,169.78,169.68,0.7680182]
[1740166619333,0.99924553,169.77,169.63,5.3979]
[1740166619633,26.41834009,169.78,169.63,5.3979]
[1740166619832,0.99919982,169.77,169.63,5.3979]
[1740166620033,0.04422851,169.72,169.68,0.04150988]
[1740166621035,0.04422851,169.72,169.69,5.8935]
[1740166622429,0.04422851,169.72,169.68,0.04150988]
[1740166622632,5.8932,169.7,169.68,0.04150988]
[1740166622839,0.04422851,169.72,169.68,0.04150988]
[1740166623635,0.04422851,169.72,169.69,5.8935]
[1740166623840,0.04422851,169.72,169.68,0.04150988]
[1740166624439,0.04422851,169.72,169.68,5.45820988]
[1740166624937,194.0,169.79,169.68,5.45820988]
[1740166625238,202.42,169.84,169.78,5.8903]
[1740166625438,8.42,169.84,169.78,5.8903]
[1740166625636,3.6478,169.87,169.73,24.02080201]
[1740166626038,0.04026503,169.82,169.78,0.04402829]
[1740166626441,0.04026503,169.82,169.81,5.8894]
[1740166627445,0.04026503,169.82,169.78,0.04402829]
[1740166628343,5.89,169.79,169.78,0.04402829]
[1740166628739,0.04026503,169.82,169.72,5.8921]
[1740166628940,1.0396196,169.82,169.72,5.8921]
[1740166629240,0.99935457,169.82,169.72,5.8921]
[1740166629540,0.99935457,169.82,169.7,5.8932]
[1740166629844,5.8922,169.73,169.63,1.8192]
[1740166630042,0.0449542,169.78,169.74,4.135e-05]
[1740166630043,24.02080201,169.77,169.74,4.135e-05]
[1740166630249,1.703,169.76,169.63,3.5878]
[1740166630438,5.8935,169.7,169.63,3.5878]
[1740166630942,194.0,169.75,169.63,3.5878]
[1740166631143,5.8943,169.67,169.55,24.02080201]
[1740166631345,5.8943,169.67,169.56,5.4023]
[1740166631541,5.8953,169.64,169.59,0.03755091]
[1740166631739,24.02080201,169.68,169.59,0.03755091]
[1740166631941,0.03796689,169.63,169.56,5.4023]
[1740166632146,0.03796689,169.63,169.62,0.04492771]
[1740166632347,0.03796689,169.63,169.56,1.7932]
[1740166632647,194.0,169.62,169.54,7.97918145]
[1740166632850,1.8131,169.61,169.54,7.97918145]
[1740166633145,5.897,169.59,169.54,7.97918145]
[1740166633544,1.8131,169.61,169.54,7.97918145]
[1740166633748,24.02080201,169.59,169.54,7.97918145]
[1740166634048,24.02080201,169.59,169.56,0.04074048]
[1740166634049,0.0453516,169.59,169.56,0.04074048]
[1740166634241,5.8975,169.58,169.56,0.04074048]
[1740166634542,195.7242,169.6,169.55,0.04151295]
[1740166634744,0.04264837,169.59,169.55,0.04151295]
[1740166634948,195.7242,169.6,169.48,25.83640201]
[1740166635154,0.04437467,169.59,169.55,0.03893657]
[1740166635442,5.94137467,169.59,169.55,0.03893657]
[1740166635849,0.04437467,169.59,169.55,0.03893657]
[1740166636146,0.04437467,169.59,169.45,3.5867]
[1740166636449,194.0,169.58,169.45,3.5867]
[1740166636655,195.7063,169.58,169.45,3.5867]
[1740166637349,0.03966859,169.53,169.45,3.5867]
[1740166638351,0.03966859,169.53,169.45,27.60750201]
[1740166638949,0.03966859,169.53,169.45,3.5867]
[1740166639343,0.03966859,169.53,169.42,1.7395]
[1740166639550,194.0,169.52,169.37,3.6317]
[1740166639747,25.01871533,169.56,169.37,5.5039]
[1740166639748,195.7003,169.51,169.37,5.5039]
[1740166640050,0.03823083,169.46,169.37,5.5039]
[1740166640251,0.03823083,169.46,169.39,24.02080201]
[1740166640550,0.03823083,169.46,169.37,5.5039]
[1740166640747,0.03823083,169.46,169.37,1.868]
[1740166640947,0.03823083,169.46,169.34,0.76960197]
[1740166641147,0.03823083,169.46,169.33,24.02080201]
[1740166641356,2.87883048,169.48,169.33,24.02080201]
[1740166641552,0.04073152,169.41,169.33,24.02080201]
[1740166643753,0.04073152,169.41,169.32,5.5338]
[1740166644351,0.04073152,169.41,169.4,5.9036]
[1740166644951,0.04073152,169.41,169.33,24.02080201]
[1740166645149,0.04073152,169.41,169.32,5.5338]
[1740166645456,0.04073152,169.41,169.4,5.9036]
[1740166646252,438.0,169.4,169.14,7.97918145]
[1740166646447,224.61740925,169.39,169.21,25.83120201]
[1740166646649,194.0,169.38,169.21,25.83120201]
[1740166646851,0.0393717,169.29,169.21,1.8104]
[1740166647552,0.0393717,169.29,169.24,24.02080201]
[1740166647752,0.0393717,169.29,169.25,1.7198]
[1740166647946,0.0393717,169.29,169.28,5.9078]
[1740166650049,0.0393717,169.29,169.27,5.9081]
[1740166650246,0.0393717,169.29,169.26,1.773]
[1740166650855,0.0393717,169.29,169.27,5.9078]
[1740166651054,0.0393717,169.29,169.26,1.773]
[1740166651450,0.0393717,169.29,169.27,5.9081]
[1740166651651,0.0393717,169.29,169.21,1.8104]
[1740166651859,0.0393717,169.29,169.22,3.6399]
[1740166653353,194.0,169.38,169.22,3.6399]
[1740166653857,5.9053,169.36,169.22,3.6399]
[1740166654157,194.0,169.38,169.22,3.6399]
[1740166654457,194.0,169.38,169.29,5.9071]
[1740166654655,0.04103339,169.32,169.29,5.9071]
[1740166654855,0.04103339,169.32,169.22,3.6399]
[1740166655051,0.04103339,169.32,169.29,0.0439736]
[1740166655258,0.04103339,169.32,169.22,3.6399]
[1740166655454,5.9074,169.3,169.29,0.04266855]
[1740166655648,0.04103339,169.32,169.22,3.6399]
[1740166655848,24.02080201,169.37,169.28,0.04304175]
[1740166656053,0.03740601,169.31,169.28,0.04304175]
[1740166656654,5.9074,169.29,169.28,0.04304175]
[1740166657853,5.94420601,169.31,169.28,0.04304175]
[1740166658359,5.9072,169.3,169.28,0.04304175]
[1740166658562,0.03740601,169.31,169.28,0.04304175]
[1740166658857,5.9074,169.29,169.28,0.04304175]
[1740166662955,24.05820802,169.31,169.22,1.828]
[1740166663357,24.02080201,169.31,169.22,1.828]
[1740166663763,24.02080201,169.31,169.24,5.9089]
[1740166664063,24.02080201,169.31,169.22,1.828]
[1740166664260,0.04196079,169.29,169.21,1.8104]
[1740166665461,0.04196079,169.29,169.23,5.9092]
[1740166665665,5.9081,169.28,169.23,5.9092]
[1740166665862,0.04196079,169.29,169.21,1.8104]
[1740166666063,0.04196079,169.29,169.23,5.9092]
[1740166666262,5.9084,169.27,169.23,5.9092]
[1740166666566,5.9084,169.27,169.24,5.909]
[1740166666761,0.04196079,169.29,169.16,1.7517]
[1740166666965,0.04196079,169.29,169.17,1.843]
[1740166667169,1.8613,169.31,169.23,5.9093]
[1740166667368,0.04341897,169.25,169.17,1.843]
[1740166667664,1.8613,169.31,169.25,5.9086]
[1740166668069,5.9081,169.28,169.25,5.9086]
[1740166668465,0.04319425,169.3,169.25,5.9086]
[1740166668667,0.04319425,169.3,169.17,25.86380201]
[1740166668966,1.8613,169.31,169.17,25.86380201]
[1740166669167,0.04142234,169.25,169.17,25.86380201]
[1740166669765,0.04142234,169.25,169.24,5.9089]
[1740166670170,0.04142234,169.25,169.23,5.9094]
[1740166670470,0.04142234,169.25,169.17,1.843]
[1740166670675,0.04142234,169.25,169.23,5.9094]
[1740166670971,0.04142234,169.25,169.17,1.843]
[1740166671367,0.04142234,169.25,169.23,5.9095]
[1740166671768,0.04142234,169.25,169.22,5.9096]
[1740166671968,0.04142234,169.25,169.17,1.843]
[1740166672371,0.04142234,169.25,169.23,5.9093]
[1740166672575,0.04142234,169.25,169.17,1.843]
[1740166673470,0.04142234,169.25,169.24,5.9092]
[1740166673974,209.09219799,169.33,169.29,5.9071]
[1740166674170,15.09219799,169.33,169.19,26.91409799]
[1740166674371,15.09219799,169.3,169.17,1.843]
[1740166675075,15.09219799,169.3,169.25,5.9086]
[1740166675471,0.04116082,169.29,169.18,25.45301616]
[1740166675668,0.04116082,169.29,169.26,0.04319953]
[1740166675976,0.04116082,169.29,169.18,25.45301616]
[1740166675977,0.03969037,169.29,169.18,25.45301616]
[1740166676178,0.03969037,169.29,169.26,0.03767684]
[1740166676474,0.03969037,169.29,169.18,25.45301616]
[1740166676475,0.0402795,169.29,169.18,25.45301616]
[1740166676673,15.09219799,169.3,169.26,0.04345403]
[1740166676974,0.04366488,169.25,169.18,25.45301616]
[1740166677176,15.09219799,169.3,169.18,25.45301616]
[1740166677369,15.09219799,169.3,169.26,0.04345403]
[1740166677675,0.04490196,169.26,169.25,5.9088]
[1740166677874,15.09219799,169.32,169.26,0.03859619]
[1740166678077,0.04199325,169.27,169.19,28.72291415]
[1740166678376,15.09219799,169.32,169.28,5.9077]
[1740166678569,15.09219799,169.32,169.27,0.03927228]
[1740166678770,21.04251898,169.32,169.27,0.03927228]
[1740166678973,21.04251898,169.32,169.27,5.94717228]
[1740166679273,5.907,169.31,169.27,5.94717228]
[1740166679475,15.13601898,169.32,169.27,0.03927228]
[1740166679978,15.13601898,169.32,169.28,5.9077]
[1740166680179,15.13601898,169.32,169.27,0.03927228]
[1740166680480,15.13601898,169.32,169.3,5.9071]
[1740166680870,15.13601898,169.32,169.27,0.03927228]
[1740166681680,5.9069,169.31,169.27,0.03927228]
[1740166681875,15.13601898,169.32,169.27,0.03927228]
[1740166682076,5.907,169.31,169.28,5.9076]
[1740166682276,5.907,169.31,169.27,0.03927228]
[1740166682477,15.13601898,169.32,169.27,0.03927228]
[1740166682676,21.04251898,169.32,169.29,5.9073]
[1740166683778,5.9068,169.31,169.29,5.9073]
[1740166683979,15.13601898,169.32,169.29,5.9072]
[1740166684176,15.13601898,169.32,169.27,0.03927228]
[1740166684375,21.04261898,169.32,169.27,0.03927228]
[1740166684783,5.9068,169.31,169.28,5.9077]
[1740166684981,15.13601898,169.32,169.27,0.03927228]
[1740166685378,5.9073,169.3,169.27,5.94727228]
[1740166685578,15.13601898,169.32,169.27,0.03927228]
[1740166685882,5.9069,169.31,169.27,0.03927228]
[1740166686384,5.9069,169.31,169.28,5.9076]
[1740166687084,5.9075,169.29,169.27,5.94727228]
[1740166687481,15.13601898,169.32,169.27,5.94727228]
[1740166687686,5.9073,169.3,169.28,5.9078]
[1740166687878,5.9073,169.3,169.27,0.03927228]
[1740166688281,5.9073,169.3,169.27,5.94727228]
[1740166688481,5.9069,169.31,169.27,0.03927228]
[1740166688681,15.13601898,169.32,169.27,0.03927228]
[1740166688882,15.13601898,169.32,169.27,5.94727228]
[1740166689076,15.13601898,169.32,169.27,0.03927228]
[1740166689282,15.13601898,169.32,169.28,5.9078]
[1740166689887,15.13601898,169.32,169.27,0.03927228]
[1740166690387,5.9075,169.29,169.27,0.03927228]
[1740166690786,1.7884,169.31,169.27,0.03927228]
[1740166690981,5.9073,169.3,169.27,0.03927228]
[1740166691188,1.7884,169.31,169.27,0.03927228]
[1740166691388,5.9072,169.3,169.27,5.94737228]
[1740166691787,1.7884,169.31,169.27,0.03927228]
[1740166691987,1.7884,169.31,169.28,5.9075]
[1740166692689,1.7884,169.31,169.27,0.03927228]
[1740166692888,0.04382099,169.32,169.27,0.03927228]
[1740166693583,0.04382099,169.32,169.3,5.9069]
[1740166693889,5.95032099,169.32,169.27,0.03927228]
[1740166694385,0.04382099,169.32,169.3,5.9069]
[1740166695689,0.04382099,169.32,169.31,5.9067]
[1740166698887,0.04382099,169.32,169.29,5.9071]
[1740166699088,0.04382099,169.32,169.28,1.8104]
[1740166699489,0.04382099,169.32,169.29,5.9074]
[1740166700092,5.95032099,169.32,169.27,5.94707228]
[1740166700283,0.04382099,169.32,169.27,0.03927228]
[1740166701193,5.9078,169.28,169.27,0.03927228]
[1740166703993,15.09219799,169.31,169.27,0.03927228]
[1740166704494,15.09219799,169.28,169.13,0.77048612]
[1740166704692,15.09219799,169.28,169.14,5.3335]
[1740166705693,0.04177676,169.23,169.14,5.3335]
[1740166706092,0.04177676,169.23,169.18,15.09219799]
[1740166706288,0.04177676,169.23,169.22,5.9099]
[1740166707385,0.04177676,169.23,169.2,5.9103]
[1740166707896,0.04177676,169.23,169.15,15.09219799]
[1740166708598,0.04177676,169.23,169.14,5.3335]
[1740166708791,0.04177676,169.23,169.18,5.911]
[1740166709096,0.04177676,169.23,169.14,5.3335]
[1740166709296,0.04177676,169.23,169.2,5.9105]
[1740166710297,0.04177676,169.23,169.19,5.9107]
[1740166710995,0.04177676,169.23,169.2,5.9105]
[1740166711586,0.04177676,169.23,169.21,5.9102]
[1740166712296,0.04177676,169.23,169.2,5.9105]
[1740166712596,0.04177676,169.23,169.15,9.66465282]
[1740166713595,0.04177676,169.23,169.17,9.66465282]
[1740166714102,0.04177676,169.23,169.19,9.66465282]
[1740166714495,0.04177676,169.23,169.2,5.9105]
[1740166714893,0.04177676,169.23,169.14,5.3335]
[1740166715096,0.04177676,169.23,169.17,9.66465282]
[1740166716095,0.04177676,169.23,169.21,5.9099]
[1740166716295,0.04177676,169.23,169.17,9.66465282]
[1740166716896,0.04177676,169.23,169.1,126.48]
[1740166717099,0.04177676,169.23,169.15,9.66465282]
[1740166717299,9.66465282,169.25,169.21,5.9101]
[1740166717497,0.04305564,169.21,169.17,9.66465282]
[1740166717697,15.57285282,169.27,169.23,5.9094]
[1740166717897,0.04204396,169.21,169.19,9.66465282]
[1740166718196,9.66465282,169.27,169.19,9.66465282]
[1740166718401,0.03926977,169.22,169.19,9.66465282]
[1740166718999,0.03926977,169.22,169.21,5.9102]
[1740166719901,0.03926977,169.22,169.2,5.9105]
[1740166720095,0.03926977,169.22,169.12,5.4452]
[1740166720096,0.03926977,169.22,169.15,9.66465282]
[1740166720292,5.94936977,169.22,169.18,5.9112]
[1740166720893,0.03926977,169.22,169.14,9.66465282]
[1740166721103,5.9107,169.2,169.16,5.9119]
[1740166721401,0.03926977,169.22,169.14,9.66465282]
[1740166721602,0.03926977,169.22,169.16,5.9119]
[1740166721800,0.03926977,169.22,169.14,9.66465282]
[1740166722204,5.9103,169.21,169.17,5.9114]
[1740166722402,0.03926977,169.22,169.17,5.9114]
[1740166723004,5.94916977,169.22,169.18,5.9112]
[1740166723202,5.94916977,169.22,169.14,9.66465282]
[1740166723400,5.94916977,169.22,169.17,5.9114]
[1740166723799,5.94916977,169.22,169.14,9.66465282]
[1740166724406,5.94916977,169.22,169.18,5.9111]
[1740166726299,5.9102,169.21,169.18,5.9111]
[1740166726504,0.03926977,169.22,169.14,9.66465282]
[1740166726908,5.9103,169.21,169.14,9.66465282]
[1740166727107,0.03926977,169.22,169.14,9.66465282]
[1740166727706,5.94946977,169.22,169.18,5.9111]
[1740166728510,5.9103,169.21,169.18,5.9111]
[1740166729205,5.9109,169.2,169.13,9.66465282]
[1740166729508,9.66465282,169.21,169.12,5.4452]
[1740166729509,9.66465282,169.21,169.12,9.66465282]
[1740166729704,0.0379251,169.18,169.16,5.9118]
[1740166730106,0.0379251,169.18,169.13,5.4639]
[1740166730308,0.0379251,169.18,169.13,3.6274]
[1740166730810,9.66465282,169.16,169.05,59.3633136]